Cogmind - Beta 10.2 --- EXPLORER MODE // 2020.11.12 @ 19:02:58 // Halloween2020/ForbiddenLore Player: 1Q84 Result: Destroyed by D-53 Grenadier with Mini Grenade Launcher Performance ------------- Evolutions (0) 0 Regions Visited (2) 400 Robots Destroyed (8) 40 Value Destroyed (210) 210 Prototype IDs (3) 60 Alien Tech Used (0) 0 Bonus (0) 0 TOTAL SCORE: 710 Bonus ------- None Cogmind --------- Core Integrity 0/250 Matter 300/300 Energy 100/100 System Corruption 0% Temperature Cool (0) Movement Core (400) Ox7 Location -10/Mines Parts ------- > --- POWER (1) -------- (None) > --- PROPULSION (2) --- (None) > --- UTILITY (3) ------ Medium Storage Unit Large Storage Unit Targeting Computer > --- WEAPON (2) ------- (None) > --- INVENTORY (14) --- Light Ion Engine Light Ion Engine Aluminum Leg Cooling System Experimental Sensor Array Terrain Scanner ECM Suite Core Shielding Power Shielding Light Armor Plating Medium Laser Improved Light Cannon Peak State ------------ > --- POWER ------------ Light Ion Engine > --- PROPULSION ------- Aluminum Leg Aluminum Leg > --- UTILITY ---------- Medium Storage Unit Large Storage Unit Targeting Computer > --- WEAPON ----------- Light Assault Rifle Improved Light Cannon > --- INVENTORY -------- Light Ion Engine Light Ion Engine Aluminum Leg Cooling System Terrain Scanner ECM Suite Core Shielding Power Shielding Medium Laser [Rating: 10] Favorites ----------- Power Light Ion Engine Engine Light Ion Engine Propulsion Aluminum Leg Leg Aluminum Leg Utility Targeting Computer Storage Medium Storage Unit Processor Targeting Computer Weapon Light Assault Rifle Energy Gun Medium Laser Ballistic Gun Light Assault Rifle Ballistic Cannon Improved Light Cannon Build | -11 -10 -10 ------- Run | Scr Mat Min Slots Evolved 1 | . 1 . Power . | . . . Propulsion . | . . . Utility 1 | . 1 . Weapon . | . . . Parts Attached 14 | 7 7 . Power 2 | 1 1 . Engine 2 | 1 1 . Core . | . . . Reactor . | . . . Propulsion 3 | 2 1 . Treads . | . . . Leg 3 | 2 1 . Wheel . | . . . Hover . | . . . Flight . | . . . Utility 3 | 2 1 . Device . | . . . Storage 2 | 1 1 . Processor 1 | 1 . . Hackware . | . . . Protection . | . . . Artifact . | . . . Weapon 6 | 2 4 . Energy Gun 4 | 1 3 . Energy Cannon . | . . . Ballistic Gun 1 | 1 . . Ballistic Cannon 1 | . 1 . Launcher . | . . . Special Weapon . | . . . Impact Weapon . | . . . Slashing Weapon . | . . . Piercing Weapon . | . . . Special Melee Weapon . | . . . Unidentified Prototypes . | . . . Parts Lost 6 | . 1 5 Power 1 | . . 1 Propulsion 2 | . . 2 Utility . | . . . Weapon 3 | . 1 2 Highest Loss Streak 5 | . 1 5 Average Slot Usage (%) 97 | . 97 97 Engine 11 | . 12 11 Leg 24 | . 25 23 Storage 23 | . 22 25 Processor 12 | . 12 12 Energy Gun 5 | . 10 . Ballistic Gun 11 | . 12 11 Ballistic Cannon 6 | . 2 11 Naked Turns . | . . . Heaviest Build 32 | 13 32 32 Greatest Support 20 | 20 20 20 Greatest Overweight (x) 9 | 3 1 9 Average Overweight (x) . | . . 1 Largest Inventory Capacity 14 | 8 14 14 Average Capacity 12 | 6 13 14 Most Carried 12 | 5 11 12 Average Carried 8 | 3 7 11 Final Capacity 14 | 8 14 14 Final Carried 12 | 5 11 12 Class Distribution -------------------- 100% | Hacker-Mutant Dominant Class ---------------- Hacker-Mutant | -10/Materials Hacker-Mutant | -10/Mines Resources | -11 -10 -10 ----------- Run | Scr Mat Min Matter Collected 375 | 231 122 22 Remotely . | . . . Salvage Created 300 | . 300 . Parts 12 | . 12 . Haulers Intercepted . | . . . Recyclers Shooed . | . . . Parts Field Recycled . | . . . Retrieved Matter . | . . . Parts Self-Destructed . | . . . Prevented . | . . . Kills | -11 -10 -10 ------- Run | Scr Mat Min Combat Hostiles Destroyed 6 | . 6 . Guns 5 | . 5 . Cannons 1 | . 1 . Classes Destroyed 4 | . 4 . Worker 1 | . 1 . Recycler 1 | . 1 . Swarmer 1 | . 1 . Grunt 5 | . 5 . Best Kill Streak 5 | . 5 . Combat Bots Only 4 | . 4 . Max Kills in Single Turn 2 | . 2 . Gunslinging . | . . . Exploded . | . . . Melee . | . . . Uniques/NPCs Destroyed . | . . . Combat | -11 -10 -10 -------- Run | Scr Mat Min Damage Taken 911 | . 229 682 Core 256 | . 12 244 Absorbed by Shields . | . . . Core Remaining (%) 100 | 100 . . Volleys Fired 22 | . 20 2 Largest 2 | . 2 2 Hottest 70 | . 70 59 Shots Fired 42 | . 39 3 Gun 35 | . 34 1 Cannon 7 | . 5 2 Launcher . | . . . Special . | . . . Kinetic 28 | . 25 3 Thermal 14 | . 14 . Explosive . | . . . Electromagnetic . | . . . Robot Hit Streak 18 | . 18 2 Robot Miss Streak 1 | . 1 1 Penetration Max . | . . . Secondary Targets 2 | . 2 . Max Gunslinging Chain 1 | . 1 . Shots Hit Robots 37 | . 35 2 Core Hits 16 | . 16 . Critical Hits 1 | . 1 . Critical Kills . | . . . Critical Parts Destroyed 1 | . 1 . Melee Attacks . | . . . Impact . | . . . Slashing . | . . . Piercing . | . . . Sneak Attacks . | . . . Combat Hostiles . | . . . Follow-up Attacks . | . . . Damage Inflicted 415 | . 396 19 Guns 315 | . 315 . Cannons 100 | . 81 19 Explosions . | . . . Melee . | . . . Ramming . | . . . Kinetic 238 | . 219 19 Thermal 177 | . 177 . Explosive . | . . . Electromagnetic . | . . . Impact . | . . . Slashing . | . . . Piercing . | . . . Highest Corruption . | . . . Average Corruption . | . . . Corruption Purged . | . . . Overload Shots . | . . . Overflow Damage . | . . . Projectiles . | . . . Explosions . | . . . Melee . | . . . Knockbacks 1 | . 1 . Impact . | . . . Kinetic 1 | . 1 . Secondary . | . . . Self-Inflicted Damage . | . . . Shots . | . . . Rammed . | . . . Targets Rammed . | . . . Kicked . | . . . Crushed . | . . . Highest Temperature 264 | . 264 13 Average Temperature 105 | . 108 11 Received Heat Transfer 156 | . 156 . Effects 3 | . 3 . Interference 3 | . 3 . Siege Activations . | . . . Robots Corrupted . | . . . Combat Hostiles . | . . . Parts Fried . | . . . Impact Corruptions . | . . . Robots Melted . | . . . Combat Hostiles . | . . . Parts Melted . | . . . Heat Transferred 518 | . 518 . Parts Sabotaged . | . . . Parts Stolen . | . . . Parts Stripped . | . . . Power Chain Reactions . | . . . Missiles Intercepted . | . . . Alert | -11 -10 -10 ------- Run | Scr Mat Min Peak Influence 165 | . 165 20 Initial 20 | . . 20 Average 52 | . 88 17 Maximum Alert Level . | . . . Low Security (%) 100 | 100 100 100 Level 1 . | . . . Level 2 . | . . . Level 3 . | . . . Level 4 . | . . . Level 5 . | . . . High Security . | . . . Max Security . | . . . Squads Dispatched 1 | . 1 . Investigation 1 | . 1 . Extermination . | . . . Reinforcement . | . . . Assault . | . . . Garrison . | . . . Intercept . | . . . Construction Impeded . | . . . Haulers Reinforced . | . . . Stealth | -11 -10 -10 --------- Run | Scr Mat Min Distress Signals 1 | . 1 . Communications Jammed . | . . . Distress Signals . | . . . Times Spotted 15 | . 13 2 Peak Tracking Total 7 | . 7 2 Tactical Retreats . | . . . Traps | -11 -10 -10 ------- Run | Scr Mat Min Traps Triggered 2 | . 2 . Indirectly . | . . . Trap Hack Attempts . | . . . Triggered . | . . . Disarmed . | . . . Reprogrammed . | . . . Reused . | . . . Traps Extracted . | . . . Installed . | . . . Triggered . | . . . Machines | -11 -10 -10 ---------- Run | Scr Mat Min Machines Disabled 1 | . 1 . Max in Single Turn 1 | . 1 . Machines Sabotaged . | . . . Garrisons Compromised . | . . . Overloaded Fab Kills . | . . . Fab Network Shutdowns . | . . . Hacking | -11 -10 -10 --------- Run | Scr Mat Min Machines Accessed 5 | . 5 . Terminals 5 | . 5 . Fabricators . | . . . Repair Stations . | . . . Recycling Units . | . . . Scanalyzers . | . . . Garrison Access . | . . . Total Hacks 10 | . 10 . Successful 9 | . 9 . Failed 1 | . 1 . Catastrophic . | . . . Database Lockouts . | . . . Manual 6 | . 6 . Terminals 10 | . 10 . Fabricators . | . . . Repair Stations . | . . . Recycling Units . | . . . Scanalyzers . | . . . Garrison Access . | . . . Terminal Hacks 6 | . 6 . Prototype ID Bank 2 | . 2 . Branch Access Points 1 | . 1 . Terminal Index 1 | . 1 . Hauler Manifests 1 | . 1 . Zone Layout 1 | . 1 . Fabricator Hacks . | . . . Repair Station Hacks . | . . . Recycling Unit Hacks . | . . . Scanalyzer . | . . . Garrison Access Hacks . | . . . Unauthorized Hacks 3 | . 3 . Terminals 3 | . 3 . Botnet 3 | . 3 . Fabricators . | . . . Repair Stations . | . . . Recycling Units . | . . . Scanalyzers . | . . . Garrison Access . | . . . Data Cores Recovered . | . . . Used . | . . . Hacking Detections 3 | . 3 . Full Trace Events 1 | . 1 . Feedback Events . | . . . Feedback Blocked . | . . . Robot Schematics Acquired . | . . . Robots Built . | . . . Matter . | . . . Time . | . . . Total Robot Build Rating . | . . . Part Schematics Acquired . | . . . Parts Built . | . . . Matter . | . . . Time . | . . . Total Part Build Rating . | . . . Parts Repaired . | . . . Time . | . . . Parts Recycled . | . . . Recycled Matter . | . . . Retrieved Matter . | . . . Retrieved Components . | . . . Parts Scanalyzed . | . . . Part Schematics Acquired . | . . . Parts Damaged . | . . . Bothacking | -11 -10 -10 ------------ Run | Scr Mat Min Used RIF Installer . | . . . Robots Hacked . | . . . Non-combat . | . . . Combat . | . . . Robot Hacks Applied . | . . . Relay Couplers Released . | . . . Robots Rewired . | . . . Allies Hacked . | . . . Hacks Repelled . | . . . Allies | -11 -10 -10 -------- Run | Scr Mat Min Total Allies 3 | . . 3 Largest Group 3 | . . 3 Highest-Rated Group 40 | . . 40 Highest-Rated Ally 16 | . . 16 Total Orders . | . . . Ally Attacks 3 | . . 3 Total Damage 10 | . . 10 Kills . | . . . Allies Corrupted . | . . . Allies Melted . | . . . Intel | -11 -10 -10 ------- Run | Scr Mat Min Robot Analysis Total . | . . . Derelict Logs Recovered . | . . . Drone Launches . | . . . Drone Recoveries . | . . . Exploration | -11 -10 -10 ------------- Run | Scr Mat Min Turns Passed 1040 | 76 537 427 Spaces Moved 655 | 53 326 276 Core 28 | 25 . 3 Treads . | . . . Legs 627 | 28 326 273 Wheels . | . . . Hover . | . . . Flight . | . . . Fastest Speed 50 | 50 120 150 Average Speed 145 | 114 143 153 Slowest Speed 500 | 200 150 500 Overloaded Moves . | . . . Propulsion Burnouts . | . . . Robots Hopped . | . . . Cave-ins Triggered . | . . . Exploration Rate (%) 45 | 5 67 64 Regions Visited 2 Branch Regions 1 Pre-discovered Areas . | . . . Known Exits Taken 2 | 1 1 . Unknown Exits Taken . | . . . Scrap Searched . | . . . Spaces Dug . | . . . Terrain Destroyed . | . . . Melee . | . . . Projectile . | . . . AOE . | . . . Terrain Rammed . | . . . Walls Destroyed . | . . . Machines Disabled . | . . . Actions | -11 -10 -10 --------- Run | Scr Mat Min Total 701 | 65 357 279 Wait . | . . . Move 653 | 52 325 276 Hop . | . . . Pick Up 11 | 6 4 1 Fast Attach 11 | 6 5 . Attach 1 | 1 . . Detach . | . . . Swap 2 | . 2 . Drop 1 | . 1 . Fire 22 | . 20 2 Melee . | . . . Ram . | . . . Kick . | . . . Crush . | . . . Escape Stasis . | . . . Rewire . | . . . Trap . | . . . Miscellaneous . | . . . Route ------- -11/Scrapyard -10/Materials (discovered 3 exits: *Mat x2 / *Min) -10/Mines (discovered 2 exits: *Mat x2) History --------- Turn | Location | Event 35 | -11/Scrapyard | Identified exit to Materials 35 | -11/Scrapyard | Discovered exit to Materials (range 15) 77 | -11/Scrapyard | Entered Materials 77 | -10/Materials | Evolved 1 slot: Utility x1 101 | -10/Materials | Identified exit to Mines 101 | -10/Materials | Discovered exit to Mines (range 14) 270 | -10/Materials | Identified exit to Materials 270 | -10/Materials | Discovered exit to Materials (range 10) 304 | -10/Materials | Build established: Hacker-Mutant 452 | -10/Materials | Discovered exit to Materials (range 15) 614 | -10/Materials | Entered Mines 670 | -10/Mines | Found a damaged Exp. Sensor Array with a note attached 673 | -10/Mines | Found Prototype Device 764 | -10/Mines | Discovered exit to Materials (range 8) 899 | -10/Mines | Assisted by bots powering up and referring to "LRC-V3" 963 | -10/Mines | Discovered exit to Materials (range 10) 996 | -10/Mines | Assembled infested the area 1032 | -10/Mines | Core integrity fell below 50% 1038 | -10/Mines | Core integrity fell below 20% 1041 | -10/Mines | Destroyed by D-53 Grenadier with Mini Grenade Launcher Last Messages --------------- 00899_ Trooper 1a: "Hello LRC-V3. What is your command?" 00899_ Mercenary 1a: "Hello LRC-V3. What is your command?" 00899_ Trooper 1b: "Hello LRC-V3. What is your command?" 00963_ EXIT=FOUND: MATERIALS 00996_ ALERT: Infestation in the mines, dispatching Demolisher response squad. 00996_ D-53 Grenadier unfolds itself. 00997_ Trooper 1a destroyed. 00997_ Mercenary 1a destroyed. 00999_ The unstable cave ceiling collapses. 00999_ Trooper 1b destroyed. 01017_ Core Extractor disabled. 01019_ The unstable cave ceiling collapses. 01022_ Aluminum Leg destroyed. 01024_ The unstable cave ceiling collapses. 01027_ Lgt. Ion Engine destroyed. 01027_ Lgt. Assault Rifle destroyed. 01028_ Aluminum Leg destroyed. 01031_ Imp. Light Cannon destroyed. 01032_ The unstable cave ceiling collapses. Map ----- +----------------------------------------------------+ | ??????????????????????????# #????????????????#### | | ??????????????????????????# #????????????????# | | ??????????????????????????# #####??????????### | | ??????????????????????????# #??####???## | | ??????????????????????????# ### #?## ##??# | | ??????????????????????????# ### ### #### | | ??????????????????????????# %## | | ??????????????????????????# | | ??????????????????????????# ####### | | ??????????????????????????## ### | | ???????????????????????? ## ## | | ???????????????????? % #### ## #### | | ?????????????????? *! #### ##??# ##?# | | ?????????????????? ???## #???# ## #?# | | ?????????????????? #???## #?### ### #? | | ??????????????????? ????# ##?# #### # | | ??????????????????? #???# ##??# #### # | | ???????????????????? ##? ##???## #### ## | | ????????????????????? #?????## ##?###? | | ????????????????????? ##??????# ##???? | | ?????????????????????? ####????????## ##??? | | ??????????????????????# ##???????????## #??? | | ?????????????????????## ###??????????## ##?# | | ?????????????????????# ##??????????# ## | | ????????????????????## #??????????# | | ????????????????????# @ #??????????# | | ????????????????????# ##?????????## """ # | | ????????????????????# #?????????## """ ## | | ????????????????????# ####????### """ #? | | ????????????????????# ###### #? | | ????????????????????# ## # # #? | | ???????????????????## # # < #? | | ???????????????????# d# ## % ##? | | ???????????????????## ####?? | | ???????????????????# % ##????? | | ???????????????????## d # #?????? | | ????????????????????# # ### # #?????? | | ????????????????????# #?## # # ##?????? | | ????????????????????## # ###???# ##??????? | | ?????????????????????### ####??????######???????? | | ???????????????????????###???????????????????????? | | | | | | | | | | | | | | | | | | | +----------------------------------------------------+ Best States ------------- Heat Dissipation 25 Energy Generation 10 Energy Capacity 125 Matter Stores 300 Matter Capacity 300 Sight Range 16 Terrain Scan Density 10 Resistance: KI 35 Resistance: TH 35 Resistance: EX 35 Resistance: EM 35 Resistance: I 35 Resistance: S 35 Resistance: P 35 Evasion (%) 40 Targeting Accuracy 5 Offensive Hacking 20 Item Schematics ----------------- None Robot Schematics ------------------ None Fabricated ------------ Nothing Alien Tech Used ----------------- None Achievements -------------- None Challenges ------------ None Game ------ Seed MasterAerolevMaul Manual? 0 Play Time 00:08:36 Cumulative 85.5 hours Start 2020.11.12 @ 13:26:54 End 2020.11.12 @ 19:02:58 Sessions 1 Manual Loads 0 Difficulty Explorer Special Mode Halloween2020/ForbiddenLore Game No. 145 Rogue 0 Adventurer 0 Explorer 145 Win Type - Total 1 Types 1/0/0/0/0/0/0/0/0 Lore% 56 Gallery% 65 Achievement% 50 Wizard Run 0 Options --------- ASCII 0 Keyboard 0 Movement Numpad Keybinds 0 Fullscreen 1 Font 36/Smallcaps Map View 76x50 Tactical HUD 1 Map Filters NONE Filters NONE Steam 1 RUN: ee6f1240-c74b-436a-b683-176bb2f27f96